[Event "Live Chess"]
[Site "Chess.com"]
[Date "2023.05.21"]
[Round "-"]
[White "Crowded_House"]
[Black "LGC4YOU"]
[Result "1-0"]
[WhiteElo "1659"]
[BlackElo "1184"]
[TimeControl "300"]
[EndTime "1:30:21 PDT"]
[Termination "Crowded_House won by checkmate"]

1. d4 {[%clk 0:04:58.6]} 1... c5 {[%clk 0:04:59]} 2. dxc5 {[%clk 0:04:51.9]}
2... Qa5+ {[%clk 0:04:57.6]} 3. Nc3 {[%clk 0:04:46.2]} 3... Qxc5 {[%clk
0:04:57.5]} 4. Be3 {[%clk 0:04:42.9]} 4... Qb4 {[%clk 0:04:56.5]} 5. Qc1 {[%clk
0:04:37.2]} 5... Nc6 {[%clk 0:04:54.5]} 6. a3 {[%clk 0:04:36.7]} 6... Qa5 {[%clk
0:04:50.8]} 7. Nf3 {[%clk 0:04:30.5]} 7... g6 {[%clk 0:04:49.2]} 8. Bd2 {[%clk
0:04:29.6]} 8... Bg7 {[%clk 0:04:47.8]} 9. e3 {[%clk 0:04:24.6]} 9... Qc7 {[%clk
0:04:41.8]} 10. Nd5 {[%clk 0:04:15]} 10... Qd8 {[%clk 0:04:40.7]} 11. Bd3 {[%clk
0:04:10.5]} 11... e6 {[%clk 0:04:36.8]} 12. Nc3 {[%clk 0:04:07.7]} 12... d5
{[%clk 0:04:33.7]} 13. O-O {[%clk 0:04:03.5]} 13... Nge7 {[%clk 0:04:32]} 14.
Bb5 {[%clk 0:03:58.2]} 14... a6 {[%clk 0:04:29.3]} 15. Be2 {[%clk 0:03:51]}
15... O-O {[%clk 0:04:28.1]} 16. Nd4 {[%clk 0:03:46.6]} 16... b5 {[%clk
0:04:24.4]} 17. Nxc6 {[%clk 0:03:44.9]} 17... Nxc6 {[%clk 0:04:23.4]} 18. Na2
{[%clk 0:03:38.3]} 18... d4 {[%clk 0:04:19.1]} 19. exd4 {[%clk 0:03:36.1]} 19...
Nxd4 {[%clk 0:04:17.7]} 20. Re1 {[%clk 0:03:19.9]} 20... Nxe2+ {[%clk
0:04:16.3]} 21. Rxe2 {[%clk 0:03:18.1]} 21... Bb7 {[%clk 0:04:15.9]} 22. Be3
{[%clk 0:03:05.6]} 22... Qh4 {[%clk 0:04:13]} 23. c3 {[%clk 0:02:48.6]} 23...
Be5 {[%clk 0:04:11.2]} 24. g3 {[%clk 0:02:46.5]} 24... Qh3 {[%clk 0:04:09.9]}
25. Qf1 {[%clk 0:02:40.9]} 25... Qg4 {[%clk 0:03:55.5]} 26. Rd2 {[%clk
0:02:20.9]} 26... Rfd8 {[%clk 0:03:53.8]} 27. Rad1 {[%clk 0:02:15.1]} 27... Bd5
{[%clk 0:03:37.6]} 28. Nb4 {[%clk 0:02:11]} 28... a5 {[%clk 0:03:21.4]} 29. Nxd5
{[%clk 0:02:08.2]} 29... Rxd5 {[%clk 0:03:20.1]} 30. Rxd5 {[%clk 0:02:04]} 30...
exd5 {[%clk 0:03:18.8]} 31. Rxd5 {[%clk 0:02:01]} 31... Qf5 {[%clk 0:03:01.9]}
32. Qd1 {[%clk 0:01:45.5]} 32... Kg7 {[%clk 0:03:00.2]} 33. Bd4 {[%clk
0:01:37.4]} 33... f6 {[%clk 0:02:48]} 34. Bxe5 {[%clk 0:01:31.7]} 34... fxe5
{[%clk 0:02:44.6]} 35. Rd7+ {[%clk 0:01:26]} 35... Kh6 {[%clk 0:02:42]} 36. Qd2+
{[%clk 0:01:22]} 36... Qg5 {[%clk 0:02:37.8]} 37. Qxg5+ {[%clk 0:01:19.7]} 37...
Kxg5 {[%clk 0:02:37.7]} 38. Rd5 {[%clk 0:01:16]} 38... Kf5 {[%clk 0:02:32.7]}
39. Rxb5 {[%clk 0:01:14.5]} 39... h5 {[%clk 0:02:27]} 40. h4 {[%clk 0:01:10.1]}
40... a4 {[%clk 0:02:23.8]} 41. Rd5 {[%clk 0:00:59.8]} 41... Rb8 {[%clk
0:02:20.3]} 42. Rd2 {[%clk 0:00:58.1]} 42... e4 {[%clk 0:02:15.8]} 43. Rc2
{[%clk 0:00:56.9]} 43... Kg4 {[%clk 0:02:13.4]} 44. c4 {[%clk 0:00:55.5]} 44...
Rb3 {[%clk 0:02:06.7]} 45. Kg2 {[%clk 0:00:46.7]} 45... e3 {[%clk 0:02:04.4]}
46. fxe3 {[%clk 0:00:45.2]} 46... Rxe3 {[%clk 0:02:03.4]} 47. Rc3 {[%clk
0:00:39.2]} 47... Re2+ {[%clk 0:01:56]} 48. Kf1 {[%clk 0:00:38.4]} 48... Rxb2
{[%clk 0:01:54.9]} 49. c5 {[%clk 0:00:37.7]} 49... Rb3 {[%clk 0:01:42.7]} 50.
Rc2 {[%clk 0:00:27.2]} 50... Rxa3 {[%clk 0:01:40.6]} 51. c6 {[%clk 0:00:26.4]}
51... Rb3 {[%clk 0:01:40.1]} 52. c7 {[%clk 0:00:25.6]} 52... a3 {[%clk
0:01:39.3]} 53. c8=Q+ {[%clk 0:00:24.3]} 53... Kxg3 {[%clk 0:01:37.9]} 54. Qc7+
{[%clk 0:00:22.5]} 54... Kxh4 {[%clk 0:01:32.6]} 55. Qc4+ {[%clk 0:00:19.7]}
55... Kg5 {[%clk 0:01:30.5]} 56. Qxb3 {[%clk 0:00:19.3]} 56... Kh6 {[%clk
0:01:26.5]} 57. Qxa3 {[%clk 0:00:18.7]} 57... g5 {[%clk 0:01:18.8]} 58. Rc6+
{[%clk 0:00:17.4]} 58... Kg7 {[%clk 0:01:17.7]} 59. Qa7+ {[%clk 0:00:16.8]}
59... Kf8 {[%clk 0:01:14.7]} 60. Rc8# {[%clk 0:00:16.5]} 1-0

[Event "Live Chess"]
[Site "Chess.com"]
[Date "2023.05.21"]
[Round "-"]
[White "YrrriKharkiv"]
[Black "Larchikov"]
[Result "0-1"]
[WhiteElo "2065"]
[BlackElo "2022"]
[TimeControl "300"]
[EndTime "1:30:22 PDT"]
[Termination "Larchikov won by resignation"]

1. d4 {[%clk 0:04:54.4]} 1... d5 {[%clk 0:04:58.2]} 2. c4 {[%clk 0:04:53.7]}
2... e6 {[%clk 0:04:57.2]} 3. Nc3 {[%clk 0:04:52.2]} 3... Nf6 {[%clk 0:04:56.7]}
4. Bg5 {[%clk 0:04:51.3]} 4... Be7 {[%clk 0:04:56.1]} 5. Qc2 {[%clk 0:04:50.4]}
5... O-O {[%clk 0:04:54.9]} 6. Nf3 {[%clk 0:04:48.9]} 6... Nbd7 {[%clk 0:04:53]}
7. e3 {[%clk 0:04:48.1]} 7... h6 {[%clk 0:04:51.8]} 8. h4 {[%clk 0:04:46.6]}
8... b6 {[%clk 0:04:48.6]} 9. cxd5 {[%clk 0:04:45.2]} 9... Nxd5 {[%clk
0:04:46.4]} 10. a3 {[%clk 0:04:35.7]} 10... hxg5 {[%clk 0:04:34.4]} 11. hxg5
{[%clk 0:04:34.1]} 11... g6 {[%clk 0:04:33.2]} 12. Qe4 {[%clk 0:04:18.1]} 12...
Kg7 {[%clk 0:04:22.8]} 13. Nxd5 {[%clk 0:04:06.6]} 13... exd5 {[%clk 0:04:17.4]}
14. Qxd5 {[%clk 0:03:59.2]} 14... Rb8 {[%clk 0:04:12.9]} 15. Rc1 {[%clk
0:03:36.7]} 15... Bb7 {[%clk 0:04:07.3]} 16. Qb5 {[%clk 0:03:36.1]} 16... c5
{[%clk 0:03:58.1]} 17. dxc5 {[%clk 0:03:17.3]} 17... Nxc5 {[%clk 0:03:54.8]} 18.
b4 {[%clk 0:02:30.8]} 18... Ba6 {[%clk 0:03:41.2]} 19. Qc6 {[%clk 0:02:21.9]}
19... Rc8 {[%clk 0:03:39.9]} 20. Qxc8 {[%clk 0:02:03.6]} 20... Qxc8 {[%clk
0:03:35]} 21. Bxa6 {[%clk 0:02:02.4]} 21... Qxa6 {[%clk 0:03:33.5]} 22. bxc5
{[%clk 0:02:01.7]} 22... Bxc5 {[%clk 0:03:31.2]} 23. Nd2 {[%clk 0:01:41.9]}
23... Rd8 {[%clk 0:03:20.3]} 24. Nc4 {[%clk 0:01:24.4]} 24... Bxa3 {[%clk
0:03:02.8]} 25. O-O {[%clk 0:01:19.3]} 25... Bxc1 {[%clk 0:02:59.3]} 26. Rxc1
{[%clk 0:01:18.9]} 26... Rc8 {[%clk 0:02:57.4]} 0-1

[Event "Live Chess"]
[Site "Chess.com"]
[Date "2023.05.21"]
[Round "-"]
[White "Dhaydon19"]
[Black "Tiltador"]
[Result "1-0"]
[WhiteElo "2695"]
[BlackElo "749"]
[TimeControl "300"]
[EndTime "1:30:23 PDT"]
[Termination "Dhaydon19 won by checkmate"]

1. d4 {[%clk 0:04:58.7]} 1... d5 {[%clk 0:04:57.5]} 2. Nf3 {[%clk 0:04:57.9]}
2... c6 {[%clk 0:04:56.3]} 3. c4 {[%clk 0:04:57.2]} 3... e6 {[%clk 0:04:55.3]}
4. cxd5 {[%clk 0:04:56.4]} 4... exd5 {[%clk 0:04:53.6]} 5. Nc3 {[%clk 0:04:56]}
5... Nf6 {[%clk 0:04:51.7]} 6. Bf4 {[%clk 0:04:55]} 6... Bb4 {[%clk 0:04:50.2]}
7. e3 {[%clk 0:04:54]} 7... Bxc3+ {[%clk 0:04:49.2]} 8. bxc3 {[%clk 0:04:53.1]}
8... O-O {[%clk 0:04:48.2]} 9. Bd3 {[%clk 0:04:52.3]} 9... Nbd7 {[%clk
0:04:44.3]} 10. O-O {[%clk 0:04:51.5]} 10... Nb6 {[%clk 0:04:43.2]} 11. h3
{[%clk 0:04:50.5]} 11... Nc4 {[%clk 0:04:41]} 12. Qc2 {[%clk 0:04:48.9]} 12...
g6 {[%clk 0:04:34.6]} 13. Bg5 {[%clk 0:04:47.4]} 13... Bf5 {[%clk 0:04:32.3]}
14. Bxf5 {[%clk 0:04:45.8]} 14... gxf5 {[%clk 0:04:30.6]} 15. Qxf5 {[%clk
0:04:45.7]} 15... Ne4 {[%clk 0:04:24.1]} 16. Bxd8 {[%clk 0:04:44.2]} 16... Raxd8
{[%clk 0:04:20.8]} 17. Qg4+ {[%clk 0:04:42.9]} 17... Kh8 {[%clk 0:04:18.7]} 18.
Qf4 {[%clk 0:04:41.9]} 18... Rg8 {[%clk 0:04:12.3]} 19. Ne5 {[%clk 0:04:40.4]}
19... Nxe5 {[%clk 0:03:57.9]} 20. dxe5 {[%clk 0:04:37.8]} 20... Rdf8 {[%clk
0:03:51.1]} 21. f3 {[%clk 0:04:35.1]} 21... Nxc3 {[%clk 0:03:43.2]} 22. Qf6+
{[%clk 0:04:33.7]} 22... Rg7 {[%clk 0:03:40.3]} 23. e6 {[%clk 0:04:33.3]} 23...
Ne2+ {[%clk 0:03:35.9]} 24. Kf2 {[%clk 0:04:32.1]} 24... Kg8 {[%clk 0:03:09.9]}
25. e7 {[%clk 0:04:24.8]} 25... Re8 {[%clk 0:03:03.3]} 26. Kxe2 {[%clk
0:04:23.8]} 26... Rg6 {[%clk 0:02:58.7]} 27. Qh4 {[%clk 0:04:19.7]} 27... Re6
{[%clk 0:02:47.7]} 28. f4 {[%clk 0:04:11.7]} 28... R6xe7 {[%clk 0:02:46.4]} 29.
Rf3 {[%clk 0:04:10.7]} 29... Re4 {[%clk 0:02:36.3]} 30. Rg3+ {[%clk 0:04:09.3]}
30... Kh8 {[%clk 0:02:32.7]} 31. Qf6# {[%clk 0:04:08]} 1-0

[Event "Live Chess"]
[Site "Chess.com"]
[Date "2023.05.21"]
[Round "-"]
[White "Denz14"]
[Black "RichardABates"]
[Result "0-1"]
[WhiteElo "1030"]
[BlackElo "2130"]
[TimeControl "300"]
[EndTime "1:30:28 PDT"]
[Termination "RichardABates won by resignation"]

1. e4 {[%clk 0:04:57.3]} 1... c5 {[%clk 0:04:58.4]} 2. Nf3 {[%clk 0:04:55.4]}
2... d6 {[%clk 0:04:57.2]} 3. c3 {[%clk 0:04:54.2]} 3... Nf6 {[%clk 0:04:55.2]}
4. d3 {[%clk 0:04:51.6]} 4... g6 {[%clk 0:04:50.6]} 5. Bg5 {[%clk 0:04:49.8]}
5... Bg7 {[%clk 0:04:49.2]} 6. Qd2 {[%clk 0:04:47.8]} 6... O-O {[%clk
0:04:47.5]} 7. Bh6 {[%clk 0:04:46.6]} 7... c4 {[%clk 0:04:41.5]} 8. Bxg7 {[%clk
0:04:44.6]} 8... Kxg7 {[%clk 0:04:40.2]} 9. Na3 {[%clk 0:04:27.6]} 9... cxd3
{[%clk 0:04:36.9]} 10. Bxd3 {[%clk 0:04:25.3]} 10... Nc6 {[%clk 0:04:35.7]} 11.
O-O {[%clk 0:04:23.6]} 11... Bg4 {[%clk 0:04:33.2]} 12. Nd4 {[%clk 0:04:13.7]}
12... Qa5 {[%clk 0:04:27.8]} 13. f3 {[%clk 0:04:04.9]} 13... Nxd4 {[%clk
0:04:25]} 14. fxg4 {[%clk 0:03:51.9]} 14... Ne6 {[%clk 0:04:23.5]} 15. Nc4
{[%clk 0:03:45.3]} 15... Qg5 {[%clk 0:04:22.1]} 16. Qxg5 {[%clk 0:03:37]} 16...
Nxg5 {[%clk 0:04:20.8]} 17. h4 {[%clk 0:03:34.3]} 17... Ne6 {[%clk 0:04:11.8]}
18. g5 {[%clk 0:03:25.7]} 18... Nd7 {[%clk 0:04:10.3]} 19. Rf2 {[%clk
0:03:17.6]} 19... Rac8 {[%clk 0:04:07]} 20. Raf1 {[%clk 0:03:14.9]} 20... Nec5
{[%clk 0:04:01.1]} 21. Bb1 {[%clk 0:03:07.1]} 21... Nxe4 {[%clk 0:03:56.5]} 22.
Bxe4 {[%clk 0:02:58.3]} 22... Rxc4 {[%clk 0:03:54.8]} 23. Bd5 {[%clk 0:02:55.8]}
23... Ne5 {[%clk 0:03:47.2]} 24. Bxc4 {[%clk 0:02:50.7]} 24... Nxc4 {[%clk
0:03:46]} 25. b3 {[%clk 0:02:49.3]} 25... Ne5 {[%clk 0:03:43.9]} 26. c4 {[%clk
0:02:38.4]} 26... Rc8 {[%clk 0:03:41]} 27. Re2 {[%clk 0:02:28.6]} 27... h6
{[%clk 0:03:38.1]} 28. gxh6+ {[%clk 0:02:07.6]} 28... Kxh6 {[%clk 0:03:36.6]}
29. g3 {[%clk 0:01:59.7]} 29... f5 {[%clk 0:03:26.7]} 30. Kg2 {[%clk 0:01:49.2]}
30... Rc7 {[%clk 0:03:24.1]} 31. Kh3 {[%clk 0:01:46.9]} 31... Ng4 {[%clk
0:03:21.4]} 32. Re6 {[%clk 0:01:42.8]} 32... Kg7 {[%clk 0:03:17.3]} 33. Re4
{[%clk 0:01:38.9]} 33... fxe4 {[%clk 0:03:14.4]} 0-1

[Event "Live Chess"]
[Site "Chess.com"]
[Date "2023.05.21"]
[Round "-"]
[White "EPotapov05"]
[Black "OceanFloater"]
[Result "1-0"]
[WhiteElo "1407"]
[BlackElo "1022"]
[TimeControl "300"]
[EndTime "1:30:41 PDT"]
[Termination "EPotapov05 won by checkmate"]

1. Nf3 {[%clk 0:04:51.1]} 1... c6 {[%clk 0:04:58.8]} 2. d4 {[%clk 0:04:49.5]}
2... d5 {[%clk 0:04:55.7]} 3. Bf4 {[%clk 0:04:48.3]} 3... Bf5 {[%clk 0:04:52.1]}
4. e3 {[%clk 0:04:46.9]} 4... e6 {[%clk 0:04:48.3]} 5. c4 {[%clk 0:04:45.7]}
5... c5 {[%clk 0:04:46.1]} 6. Nc3 {[%clk 0:04:43.4]} 6... cxd4 {[%clk
0:04:43.1]} 7. Nxd4 {[%clk 0:04:39.5]} 7... Nc6 {[%clk 0:04:40.5]} 8. Nxf5
{[%clk 0:04:35.7]} 8... exf5 {[%clk 0:04:37.4]} 9. cxd5 {[%clk 0:04:27.9]} 9...
Nb4 {[%clk 0:04:25.3]} 10. Qa4+ {[%clk 0:04:23.1]} 10... Qd7 {[%clk 0:04:12.3]}
11. Bb5 {[%clk 0:04:21.6]} 11... Nd3+ {[%clk 0:04:08.9]} 12. Ke2 {[%clk
0:03:56.8]} 12... Nxf4+ {[%clk 0:04:06]} 13. exf4 {[%clk 0:03:55.9]} 13... Qxb5+
{[%clk 0:04:02.5]} 14. Qxb5+ {[%clk 0:03:54]} 14... Kd8 {[%clk 0:03:57.7]} 15.
Qxb7 {[%clk 0:03:52.6]} 15... Rc8 {[%clk 0:03:51.8]} 16. Rhd1 {[%clk 0:03:44.7]}
16... Bd6 {[%clk 0:03:49.1]} 17. g3 {[%clk 0:03:41.3]} 17... Nf6 {[%clk
0:03:44.1]} 18. Qxf7 {[%clk 0:03:39.8]} 18... Re8+ {[%clk 0:03:37]} 19. Kf1
{[%clk 0:03:38.2]} 19... Ne4 {[%clk 0:03:28.4]} 20. Qxf5 {[%clk 0:03:32.2]}
20... Nxc3 {[%clk 0:03:22.1]} 21. bxc3 {[%clk 0:03:31.1]} 21... Rxc3 {[%clk
0:03:19.5]} 22. Qg5+ {[%clk 0:03:24.3]} 22... Re7 {[%clk 0:03:13.9]} 23. Re1
{[%clk 0:03:20.5]} 23... Rc2 {[%clk 0:03:08]} 24. Rxe7 {[%clk 0:03:16.3]} 24...
Bxe7 {[%clk 0:03:06.4]} 25. Qxg7 {[%clk 0:03:14.3]} 25... Rd2 {[%clk 0:03:01.7]}
26. Qg8+ {[%clk 0:03:08]} 26... Kd7 {[%clk 0:02:59.2]} 27. Qe6+ {[%clk
0:03:07.1]} 27... Kd8 {[%clk 0:02:57.4]} 28. Rc1 {[%clk 0:03:00.2]} 28... Rxa2
{[%clk 0:02:44.5]} 29. Rc8# {[%clk 0:02:58.3]} 1-0

[Event "Live Chess"]
[Site "Chess.com"]
[Date "2023.05.21"]
[Round "-"]
[White "Ian-Morley"]
[Black "Leonid_Starozhilov"]
[Result "0-1"]
[WhiteElo "1053"]
[BlackElo "2661"]
[TimeControl "300"]
[EndTime "1:30:45 PDT"]
[Termination "Leonid_Starozhilov won by checkmate"]

1. e4 {[%clk 0:04:59]} 1... e5 {[%clk 0:04:58.6]} 2. Nf3 {[%clk 0:04:55.1]} 2...
Nc6 {[%clk 0:04:58.5]} 3. Bc4 {[%clk 0:04:53.7]} 3... Nf6 {[%clk 0:04:57.1]} 4.
Ng5 {[%clk 0:04:51.7]} 4... d5 {[%clk 0:04:56.3]} 5. exd5 {[%clk 0:04:50.3]}
5... b5 {[%clk 0:04:55.6]} 6. dxc6 {[%clk 0:04:48.2]} 6... bxc4 {[%clk
0:04:54.3]} 7. Nc3 {[%clk 0:04:46.1]} 7... Bd6 {[%clk 0:04:47.8]} 8. Nce4 {[%clk
0:04:44.5]} 8... h6 {[%clk 0:04:39.6]} 9. Nxf6+ {[%clk 0:04:42.6]} 9... Qxf6
{[%clk 0:04:37]} 10. Ne4 {[%clk 0:04:41.2]} 10... Qg6 {[%clk 0:04:36.3]} 11.
Nxd6+ {[%clk 0:04:39]} 11... cxd6 {[%clk 0:04:35.7]} 12. O-O {[%clk 0:04:37.1]}
12... O-O {[%clk 0:04:33.1]} 13. Qf3 {[%clk 0:04:35.9]} 13... Qxc2 {[%clk
0:04:29.1]} 14. c7 {[%clk 0:04:34.4]} 14... Be6 {[%clk 0:04:27]} 15. b3 {[%clk
0:04:17.5]} 15... Rac8 {[%clk 0:04:22]} 16. Qc3 {[%clk 0:04:13]} 16... Qxc3
{[%clk 0:04:18.5]} 17. dxc3 {[%clk 0:04:12]} 17... Rxc7 {[%clk 0:04:17.3]} 18.
bxc4 {[%clk 0:04:10.9]} 18... Rxc4 {[%clk 0:04:14.5]} 19. Rb1 {[%clk 0:04:07.4]}
19... Rxc3 {[%clk 0:04:13.1]} 20. Bb2 {[%clk 0:04:06.4]} 20... Rc2 {[%clk
0:04:11.8]} 21. Ba3 {[%clk 0:04:02.2]} 21... Rd8 {[%clk 0:04:07.9]} 22. Rfd1
{[%clk 0:03:59.9]} 22... Rxa2 {[%clk 0:03:57.6]} 23. Rxd6 {[%clk 0:03:58.5]}
23... Rxd6 {[%clk 0:03:48.9]} 24. Bxd6 {[%clk 0:03:57.5]} 24... f6 {[%clk
0:03:48]} 25. f4 {[%clk 0:03:55.8]} 25... e4 {[%clk 0:03:46]} 26. Re1 {[%clk
0:03:53.5]} 26... Bd5 {[%clk 0:03:40.2]} 27. h3 {[%clk 0:03:49.6]} 27... a5
{[%clk 0:03:38.4]} 28. Kh2 {[%clk 0:03:48.5]} 28... e3 {[%clk 0:03:35.2]} 29.
Kg3 {[%clk 0:03:39]} 29... Rxg2+ {[%clk 0:03:33.5]} 30. Kh4 {[%clk 0:03:38.3]}
30... g5+ {[%clk 0:03:29.2]} 31. Kh5 {[%clk 0:03:34.6]} 31... Kg7 {[%clk
0:03:27.5]} 32. fxg5 {[%clk 0:03:31.8]} 32... hxg5 {[%clk 0:03:24.6]} 33. Rf1
{[%clk 0:03:16.1]} 33... Bf7# {[%clk 0:03:21.4]} 0-1

[Event "Live Chess"]
[Site "Chess.com"]
[Date "2023.05.21"]
[Round "-"]
[White "CroasArRheun"]
[Black "HoarseyHorsey"]
[Result "1-0"]
[WhiteElo "1808"]
[BlackElo "1466"]
[TimeControl "300"]
[EndTime "1:31:07 PDT"]
[Termination "CroasArRheun won by resignation"]

1. d4 {[%clk 0:04:58.3]} 1... Nf6 {[%clk 0:04:58.7]} 2. c4 {[%clk 0:04:56.8]}
2... e6 {[%clk 0:04:57.6]} 3. Nc3 {[%clk 0:04:55.7]} 3... d5 {[%clk 0:04:56.9]}
4. cxd5 {[%clk 0:04:54]} 4... exd5 {[%clk 0:04:56.8]} 5. Bg5 {[%clk 0:04:51.9]}
5... Be7 {[%clk 0:04:52.6]} 6. e3 {[%clk 0:04:49.4]} 6... c6 {[%clk 0:04:51.8]}
7. Bd3 {[%clk 0:04:47.8]} 7... O-O {[%clk 0:04:50.4]} 8. Nge2 {[%clk 0:04:45.9]}
8... Bg4 {[%clk 0:04:48.6]} 9. Qc2 {[%clk 0:04:44.4]} 9... h6 {[%clk 0:04:45.3]}
10. Bh4 {[%clk 0:04:42.7]} 10... Nbd7 {[%clk 0:04:42.4]} 11. O-O {[%clk
0:04:40.9]} 11... Re8 {[%clk 0:04:38.6]} 12. f3 {[%clk 0:04:39.6]} 12... Bh5
{[%clk 0:04:36.5]} 13. e4 {[%clk 0:04:37.8]} 13... dxe4 {[%clk 0:04:33.8]} 14.
fxe4 {[%clk 0:04:36.8]} 14... Nh7 {[%clk 0:04:23.8]} 15. Bg3 {[%clk 0:04:33.5]}
15... Bg5 {[%clk 0:04:13.9]} 16. e5 {[%clk 0:04:31.8]} 16... Bg6 {[%clk
0:04:12.4]} 17. Bxg6 {[%clk 0:04:30.2]} 17... fxg6 {[%clk 0:04:12.3]} 18. Qxg6
{[%clk 0:04:29]} 18... Rf8 {[%clk 0:03:43.4]} 19. Bf4 {[%clk 0:04:13.8]} 19...
Qe7 {[%clk 0:03:29.3]} 20. Bxg5 {[%clk 0:04:11]} 20... Nxg5 {[%clk 0:03:20.5]}
21. Nf4 {[%clk 0:04:05.8]} 21... Rf5 {[%clk 0:03:07.5]} 22. Qxf5 {[%clk
0:04:03]} 1-0

[Event "Live Chess"]
[Site "Chess.com"]
[Date "2023.05.21"]
[Round "-"]
[White "Duke_of_Bebington"]
[Black "swingrumbacha"]
[Result "0-1"]
[WhiteElo "1595"]
[BlackElo "2439"]
[TimeControl "300"]
[EndTime "1:31:17 PDT"]
[Termination "swingrumbacha won by resignation"]

1. e4 {[%clk 0:04:58.1]} 1... d6 {[%clk 0:04:54.2]} 2. d4 {[%clk 0:04:56.4]}
2... Nf6 {[%clk 0:04:50.2]} 3. Nc3 {[%clk 0:04:54.4]} 3... g5 {[%clk 0:04:46.7]}
4. Bxg5 {[%clk 0:04:51.1]} 4... Nbd7 {[%clk 0:04:11.9]} 5. Bd3 {[%clk
0:04:35.5]} 5... Rg8 {[%clk 0:04:07.5]} 6. Bh4 {[%clk 0:04:24.2]} 6... e5 {[%clk
0:04:03.9]} 7. Nf3 {[%clk 0:04:15.9]} 7... c6 {[%clk 0:04:00.1]} 8. Qe2 {[%clk
0:04:08.4]} 8... Rxg2 {[%clk 0:03:55.4]} 9. Bg3 {[%clk 0:04:06.2]} 9... exd4
{[%clk 0:03:51.3]} 10. Nxd4 {[%clk 0:04:03.8]} 10... Qb6 {[%clk 0:03:46.4]} 11.
O-O-O {[%clk 0:03:56.7]} 11... Rxg3 {[%clk 0:03:41.9]} 12. hxg3 {[%clk
0:03:53.8]} 12... Qxd4 {[%clk 0:03:37.9]} 13. Qf3 {[%clk 0:03:37.5]} 13... h6
{[%clk 0:03:33.3]} 14. Ne2 {[%clk 0:03:31.1]} 14... Qe5 {[%clk 0:03:29.5]} 15.
Nf4 {[%clk 0:03:27.5]} 15... Qe7 {[%clk 0:03:25.3]} 16. Rhe1 {[%clk 0:03:13.2]}
16... Qe5 {[%clk 0:03:20.7]} 17. Qe3 {[%clk 0:03:00.2]} 17... Nc5 {[%clk
0:03:16.2]} 18. Qd2 {[%clk 0:02:35.1]} 18... Bd7 {[%clk 0:03:11.7]} 19. f3
{[%clk 0:02:24.9]} 19... Qg5 {[%clk 0:03:06.8]} 20. Qf2 {[%clk 0:02:17]} 20...
Be6 {[%clk 0:03:01.6]} 21. Kb1 {[%clk 0:02:15.7]} 21... Nfd7 {[%clk 0:02:56]}
22. Ne2 {[%clk 0:02:04.2]} 22... O-O-O {[%clk 0:02:50.2]} 23. f4 {[%clk
0:01:59.8]} 23... Nxd3 {[%clk 0:02:43]} 24. Rxd3 {[%clk 0:01:57.7]} 24... Qb5
{[%clk 0:02:37.2]} 25. Ra3 {[%clk 0:01:51.8]} 25... a6 {[%clk 0:02:32.9]} 26.
Nc3 {[%clk 0:01:48.8]} 26... Qc5 {[%clk 0:02:28]} 27. Qd2 {[%clk 0:01:35.1]}
27... Nb6 {[%clk 0:02:23.4]} 28. Na4 {[%clk 0:01:27.4]} 28... Nc4 {[%clk
0:02:19.2]} 29. Nxc5 {[%clk 0:01:18.9]} 29... Nxd2+ {[%clk 0:02:15.6]} 30. Kc1
{[%clk 0:01:18.4]} 30... dxc5 {[%clk 0:02:11.8]} 31. Rd3 {[%clk 0:01:11.4]}
31... Rxd3 {[%clk 0:02:06.9]} 32. cxd3 {[%clk 0:01:11.3]} 32... c4 {[%clk
0:02:02.6]} 33. Kxd2 {[%clk 0:01:09.4]} 33... Bb4+ {[%clk 0:01:58.1]} 34. Ke2
{[%clk 0:01:07]} 0-1

[Event "Live Chess"]
[Site "Chess.com"]
[Date "2023.05.21"]
[Round "-"]
[White "Geomorph"]
[Black "Rusty_Bridges"]
[Result "0-1"]
[WhiteElo "1273"]
[BlackElo "1525"]
[TimeControl "300"]
[EndTime "1:31:29 PDT"]
[Termination "Rusty_Bridges won on time"]

1. e4 {[%clk 0:04:58.4]} 1... d6 {[%clk 0:04:58.1]} 2. d4 {[%clk 0:04:43.3]}
2... Nf6 {[%clk 0:04:55.7]} 3. Nc3 {[%clk 0:04:42.4]} 3... Nbd7 {[%clk
0:04:48.3]} 4. Nf3 {[%clk 0:04:03.5]} 4... e5 {[%clk 0:04:43.6]} 5. g4 {[%clk
0:03:56.3]} 5... h6 {[%clk 0:04:39.1]} 6. g5 {[%clk 0:03:51.6]} 6... hxg5 {[%clk
0:04:36.8]} 7. Nxg5 {[%clk 0:03:47.6]} 7... Be7 {[%clk 0:04:35.6]} 8. Be3 {[%clk
0:03:13.8]} 8... Nb6 {[%clk 0:04:29.8]} 9. Bd3 {[%clk 0:02:58.5]} 9... Bg4
{[%clk 0:04:16.4]} 10. f3 {[%clk 0:02:47.8]} 10... Bh5 {[%clk 0:04:14]} 11. O-O
{[%clk 0:02:42.1]} 11... Qd7 {[%clk 0:04:10.5]} 12. d5 {[%clk 0:02:15.1]} 12...
O-O-O {[%clk 0:04:04.2]} 13. Qd2 {[%clk 0:02:07.5]} 13... Nh7 {[%clk 0:03:55.1]}
14. Bb5 {[%clk 0:02:01.6]} 14... c6 {[%clk 0:03:45.1]} 15. dxc6 {[%clk
0:02:00.5]} 15... bxc6 {[%clk 0:03:44.2]} 16. Ba6+ {[%clk 0:01:59]} 16... Kb8
{[%clk 0:03:42.9]} 17. Nxh7 {[%clk 0:01:26.4]} 17... Rxh7 {[%clk 0:03:38.4]} 18.
Bg5 {[%clk 0:01:13.6]} 18... f6 {[%clk 0:03:08.3]} 19. Be3 {[%clk 0:01:05.9]}
19... Rdh8 {[%clk 0:03:03.4]} 20. Rae1 {[%clk 0:00:42.1]} 20... Bf7 {[%clk
0:02:49.3]} 21. Re2 {[%clk 0:00:38.1]} 21... Nc4 {[%clk 0:02:40.2]} 22. Qc1
{[%clk 0:00:32]} 22... Qc7 {[%clk 0:02:22.1]} 23. Ref2 {[%clk 0:00:24.7]} 23...
Qa5 {[%clk 0:02:17.8]} 24. Bxc4 {[%clk 0:00:18.3]} 24... Bxc4 {[%clk 0:02:15.7]}
25. Rd1 {[%clk 0:00:16.4]} 25... Be6 {[%clk 0:02:06.1]} 26. Qd2 {[%clk
0:00:14.5]} 26... Qc7 {[%clk 0:02:00.9]} 27. Qe2 {[%clk 0:00:12.1]} 27... Rh3
{[%clk 0:01:56.5]} 28. Qf1 {[%clk 0:00:09]} 28... R8h7 {[%clk 0:01:48.3]} 29.
Rg2 {[%clk 0:00:08.1]} 29... Qd8 {[%clk 0:01:45.9]} 30. Qe2 {[%clk 0:00:06.4]}
30... Qh8 {[%clk 0:01:43.7]} 31. Rd2 {[%clk 0:00:05.1]} 31... Kc7 {[%clk
0:01:39.8]} 32. Na4 {[%clk 0:00:03.4]} 32... Qb8 {[%clk 0:01:36.5]} 33. b3
{[%clk 0:00:01]} 33... R3h5 {[%clk 0:01:29.9]} 0-1